[Event "Early-Titled-Tuesday-Blitz-June-18-2024"]
[Site "Chess.com"]
[Date "2024.06.18"]
[Round "3"]
[White "H3nriqueTV"]
[Black "bocah_sakit"]
[Result "1/2-1/2"]
[WhiteElo "2375"]
[BlackElo "2606"]
[TimeControl "180+1"]
[EndTime "8:30:15 PDT"]
[Termination "Game drawn by repetition"]

1. e4 {[%clk 0:02:56.8]} 1... e5 {[%clk 0:02:43.6]} 2. Nf3 {[%clk 0:02:53.8]}
2... Nc6 {[%clk 0:02:43.4]} 3. Bb5 {[%clk 0:02:47.4]} 3... Nf6 {[%clk
0:02:43.2]} 4. O-O {[%clk 0:02:46.4]} 4... Nxe4 {[%clk 0:02:36.7]} 5. Re1 {[%clk
0:02:46.1]} 5... Nd6 {[%clk 0:02:36.3]} 6. Nxe5 {[%clk 0:02:39.4]} 6... Be7
{[%clk 0:02:33.9]} 7. Ba4 {[%clk 0:02:27.3]} 7... Nxe5 {[%clk 0:02:25.4]} 8.
Rxe5 {[%clk 0:02:26.1]} 8... O-O {[%clk 0:02:26.3]} 9. Bb3 {[%clk 0:02:22.5]}
9... Bf6 {[%clk 0:02:24.1]} 10. Re1 {[%clk 0:02:22]} 10... Nf5 {[%clk
0:02:24.6]} 11. c3 {[%clk 0:02:21.4]} 11... d5 {[%clk 0:02:24.3]} 12. d4 {[%clk
0:02:21.7]} 12... c6 {[%clk 0:02:24.1]} 13. Bf4 {[%clk 0:02:21.2]} 13... Bg5
{[%clk 0:02:20.8]} 14. Qf3 {[%clk 0:02:20.2]} 14... Bxf4 {[%clk 0:01:57.4]} 15.
Qxf4 {[%clk 0:02:21.1]} 15... Nd6 {[%clk 0:01:58.3]} 16. Nd2 {[%clk 0:02:19.1]}
16... Bf5 {[%clk 0:01:58.1]} 17. Re5 {[%clk 0:02:14.9]} 17... Bg6 {[%clk
0:01:57.3]} 18. Rae1 {[%clk 0:02:14.2]} 18... Re8 {[%clk 0:01:45.4]} 19. h4
{[%clk 0:02:02.1]} 19... Rxe5 {[%clk 0:01:43.1]} 20. dxe5 {[%clk 0:02:03]} 20...
Ne4 {[%clk 0:01:36.2]} 21. h5 {[%clk 0:01:32.4]} 21... Bxh5 {[%clk 0:01:23.1]}
22. Nxe4 {[%clk 0:01:30.2]} 22... dxe4 {[%clk 0:01:24]} 23. e6 {[%clk
0:01:25.8]} 23... fxe6 {[%clk 0:01:21.9]} 24. Bxe6+ {[%clk 0:01:25.5]} 24... Kh8
{[%clk 0:01:22.3]} 25. Rxe4 {[%clk 0:01:20.7]} 25... Bg6 {[%clk 0:01:15.9]} 26.
Re1 {[%clk 0:01:10.8]} 26... Qe7 {[%clk 0:01:14.5]} 27. Re3 {[%clk 0:01:02.7]}
27... Rf8 {[%clk 0:01:13.3]} 28. Qg3 {[%clk 0:00:57.9]} 28... Qd8 {[%clk
0:01:13.2]} 29. Bg4 {[%clk 0:00:35.6]} 29... Qd2 {[%clk 0:01:11.4]} 30. Re2
{[%clk 0:00:35.6]} 30... Qc1+ {[%clk 0:01:05.2]} 31. Kh2 {[%clk 0:00:34.3]}
31... a5 {[%clk 0:00:54.6]} 32. Qd6 {[%clk 0:00:32.1]} 32... Rg8 {[%clk
0:00:36.7]} 33. Be6 {[%clk 0:00:31.7]} 33... Qh6+ {[%clk 0:00:30.8]} 34. Kg1
{[%clk 0:00:30.6]} 34... Bh5 {[%clk 0:00:20.5]} 35. Re3 {[%clk 0:00:20.2]} 35...
Bg4 {[%clk 0:00:20.7]} 36. Qe7 {[%clk 0:00:16.4]} 36... Bxe6 {[%clk 0:00:20.5]}
37. Rxe6 {[%clk 0:00:16.4]} 37... Qc1+ {[%clk 0:00:21.2]} 38. Kh2 {[%clk
0:00:16.6]} 38... Qf4+ {[%clk 0:00:21.5]} 39. Kg1 {[%clk 0:00:16.2]} 39... Qc1+
{[%clk 0:00:21.6]} 40. Kh2 {[%clk 0:00:16]} 40... Qxb2 {[%clk 0:00:22.1]} 41.
Qf7 {[%clk 0:00:15.4]} 41... h6 {[%clk 0:00:16.5]} 42. Re8 {[%clk 0:00:07.8]}
42... Rxe8 {[%clk 0:00:12]} 43. Qxe8+ {[%clk 0:00:08.7]} 43... Kh7 {[%clk
0:00:12.5]} 44. Qe4+ {[%clk 0:00:09.5]} 44... Kg8 {[%clk 0:00:11.9]} 45. Qe8+
{[%clk 0:00:10]} 45... Kh7 {[%clk 0:00:12.6]} 46. Qe4+ {[%clk 0:00:10.4]} 46...
g6 {[%clk 0:00:13.2]} 47. Qe7+ {[%clk 0:00:10.5]} 47... Kg8 {[%clk 0:00:13.6]}
48. Qe8+ {[%clk 0:00:10.8]} 48... Kg7 {[%clk 0:00:14.5]} 49. Qe7+ {[%clk
0:00:11.2]} 49... Kg8 {[%clk 0:00:15.4]} 50. Qe8+ {[%clk 0:00:11.8]} 50... Kg7
{[%clk 0:00:15.9]} 51. Qe7+ {[%clk 0:00:12.4]} 51... Kg8 {[%clk 0:00:15.7]}
1/2-1/2

[Event "Early-Titled-Tuesday-Blitz-June-18-2024"]
[Site "Chess.com"]
[Date "2024.06.18"]
[Round "3"]
[White "Ati1517"]
[Black "AGW2016"]
[Result "0-1"]
[WhiteElo "2017"]
[BlackElo "2547"]
[TimeControl "180+1"]
[EndTime "8:30:16 PDT"]
[Termination "AGW2016 won by resignation"]

1. e4 {[%clk 0:03:00.9]} 1... e5 {[%clk 0:03:00.2]} 2. Nf3 {[%clk 0:03:00.9]}
2... Nc6 {[%clk 0:02:57.7]} 3. Bc4 {[%clk 0:03:01.2]} 3... Bc5 {[%clk
0:02:53.6]} 4. c3 {[%clk 0:03:00.5]} 4... Nf6 {[%clk 0:02:53.5]} 5. d3 {[%clk
0:02:59.4]} 5... d6 {[%clk 0:02:53.1]} 6. h3 {[%clk 0:02:57.8]} 6... a6 {[%clk
0:02:53.7]} 7. Bb3 {[%clk 0:02:56.6]} 7... h6 {[%clk 0:02:48.9]} 8. Nbd2 {[%clk
0:02:53.9]} 8... Ba7 {[%clk 0:02:44.2]} 9. Nf1 {[%clk 0:02:54.3]} 9... Qe7
{[%clk 0:02:44.1]} 10. Ng3 {[%clk 0:02:49.4]} 10... Bd7 {[%clk 0:02:44.6]} 11.
Be3 {[%clk 0:02:46.9]} 11... Bxe3 {[%clk 0:02:44.1]} 12. fxe3 {[%clk 0:02:47.3]}
12... O-O-O {[%clk 0:02:44.5]} 13. Qd2 {[%clk 0:02:47.6]} 13... Kb8 {[%clk
0:02:32.6]} 14. O-O-O {[%clk 0:02:47.5]} 14... Be6 {[%clk 0:02:29.6]} 15. Bxe6
{[%clk 0:02:45.1]} 15... Qxe6 {[%clk 0:02:30.5]} 16. b3 {[%clk 0:02:43.8]} 16...
d5 {[%clk 0:02:30.5]} 17. exd5 {[%clk 0:02:41.3]} 17... Nxd5 {[%clk 0:02:31.4]}
18. e4 {[%clk 0:02:36.7]} 18... Nf4 {[%clk 0:02:29.6]} 19. d4 {[%clk 0:02:36.3]}
19... Qe7 {[%clk 0:02:20]} 20. Nxe5 {[%clk 0:02:26.9]} 20... Nxe5 {[%clk
0:01:53.1]} 21. Qxf4 {[%clk 0:02:25.3]} 21... Ng6 {[%clk 0:01:50.4]} 22. Qe3
{[%clk 0:02:19.5]} 22... Qa3+ {[%clk 0:01:48.9]} 23. Kb1 {[%clk 0:02:19.2]}
23... Rhe8 {[%clk 0:01:49.7]} 24. e5 {[%clk 0:02:13]} 24... Ne7 {[%clk
0:01:49.3]} 25. c4 {[%clk 0:02:10.7]} 25... Nc6 {[%clk 0:01:43.6]} 26. Rhe1
{[%clk 0:02:06.4]} 26... a5 {[%clk 0:01:26.4]} 27. Qc3 {[%clk 0:01:46.1]} 27...
a4 {[%clk 0:01:22.3]} 28. d5 {[%clk 0:01:39.7]} 28... axb3 {[%clk 0:01:08.8]}
29. dxc6 {[%clk 0:01:38.5]} 29... bxa2+ {[%clk 0:00:28]} 30. Kc2 {[%clk
0:01:36.7]} 30... Rxd1 {[%clk 0:00:25.8]} 31. Qxa3 {[%clk 0:01:28.9]} 31... Rxe1
{[%clk 0:00:26]} 32. Qxa2 {[%clk 0:01:28]} 32... R8xe5 {[%clk 0:00:23]} 33. Qa3
{[%clk 0:01:15.2]} 33... bxc6 {[%clk 0:00:18.1]} 34. Qf8+ {[%clk 0:01:14.2]}
34... Kb7 {[%clk 0:00:18.2]} 35. Qxg7 {[%clk 0:01:10.2]} 35... R1e3 {[%clk
0:00:11.4]} 36. Nf1 {[%clk 0:00:58.8]} 36... Re2+ {[%clk 0:00:11.6]} 37. Nd2
{[%clk 0:00:58.4]} 37... Re6 {[%clk 0:00:10.6]} 38. Qxf7 {[%clk 0:00:50.6]}
38... Rd6 {[%clk 0:00:09]} 39. Qf4 {[%clk 0:00:51.1]} 39... Rxg2 {[%clk
0:00:08.3]} 40. Kc3 {[%clk 0:00:45]} 40... Rgxd2 {[%clk 0:00:08.4]} 41. h4
{[%clk 0:00:35.3]} 41... h5 {[%clk 0:00:08.2]} 42. Qg5 {[%clk 0:00:34.7]} 42...
R6d3+ {[%clk 0:00:06.6]} 43. Kb4 {[%clk 0:00:35.1]} 43... Rb2+ {[%clk
0:00:06.5]} 44. Kc5 {[%clk 0:00:35.2]} 44... Ra2 {[%clk 0:00:05.1]} 45. Kb4
{[%clk 0:00:34]} 45... Rdd2 {[%clk 0:00:03.7]} 46. Kc3 {[%clk 0:00:33.1]} 46...
Rac2+ {[%clk 0:00:03.7]} 47. Kb3 {[%clk 0:00:33.3]} 47... Rb2+ {[%clk
0:00:04.6]} 48. Kc3 {[%clk 0:00:33.7]} 48... Rbc2+ {[%clk 0:00:05]} 49. Kb3
{[%clk 0:00:34]} 49... Rb2+ {[%clk 0:00:04.2]} 50. Kc3 {[%clk 0:00:33.1]} 50...
Rdc2+ {[%clk 0:00:05.1]} 51. Kd3 {[%clk 0:00:32.7]} 51... Rh2 {[%clk 0:00:04.6]}
52. Qxh5 {[%clk 0:00:28.9]} 52... Kb6 {[%clk 0:00:05]} 53. Qe5 {[%clk
0:00:22.3]} 53... Rb3+ {[%clk 0:00:04.5]} 54. Ke4 {[%clk 0:00:21.3]} 54... Rxh4+
{[%clk 0:00:05.1]} 0-1

[Event "Early-Titled-Tuesday-Blitz-June-18-2024"]
[Site "Chess.com"]
[Date "2024.06.18"]
[Round "3"]
[White "Chempiblinka"]
[Black "PattyCastillo"]
[Result "1-0"]
[WhiteElo "2359"]
[BlackElo "1899"]
[TimeControl "180+1"]
[EndTime "8:30:18 PDT"]
[Termination "Chempiblinka won by checkmate"]

1. Nf3 {[%clk 0:03:00.3]} 1... d5 {[%clk 0:02:55.2]} 2. g3 {[%clk 0:03:00.6]}
2... Nf6 {[%clk 0:02:51.8]} 3. Bg2 {[%clk 0:03:01]} 3... c6 {[%clk 0:02:50.8]}
4. O-O {[%clk 0:03:00.1]} 4... e6 {[%clk 0:02:48.3]} 5. c4 {[%clk 0:02:59.7]}
5... Nbd7 {[%clk 0:02:47]} 6. d4 {[%clk 0:02:56.7]} 6... Be7 {[%clk 0:02:46.1]}
7. Qc2 {[%clk 0:02:54.7]} 7... O-O {[%clk 0:02:45.2]} 8. Nbd2 {[%clk 0:02:54.4]}
8... b6 {[%clk 0:02:44.9]} 9. e4 {[%clk 0:02:53.9]} 9... dxe4 {[%clk 0:02:40.6]}
10. Nxe4 {[%clk 0:02:54.8]} 10... Bb7 {[%clk 0:02:39.2]} 11. Bf4 {[%clk
0:01:57.2]} 11... Nxe4 {[%clk 0:02:34.8]} 12. Qxe4 {[%clk 0:01:57.1]} 12... Qc8
{[%clk 0:02:26.9]} 13. Qe2 {[%clk 0:01:50.2]} 13... Bf6 {[%clk 0:02:19.9]} 14.
Rad1 {[%clk 0:01:45.1]} 14... Rd8 {[%clk 0:02:13.7]} 15. b3 {[%clk 0:01:44]}
15... c5 {[%clk 0:02:13.5]} 16. d5 {[%clk 0:01:38.6]} 16... exd5 {[%clk
0:02:02.5]} 17. Ng5 {[%clk 0:01:30.9]} 17... Bd4 {[%clk 0:01:11.4]} 18. Qh5
{[%clk 0:01:25.1]} 18... Nf6 {[%clk 0:01:01]} 19. Qxf7+ {[%clk 0:01:23.5]} 19...
Kh8 {[%clk 0:00:59]} 20. Ne6 {[%clk 0:01:02.1]} 20... Rg8 {[%clk 0:00:54.4]} 21.
Bg5 {[%clk 0:00:49.9]} 21... Qe8 {[%clk 0:00:29.7]} 22. Qxb7 {[%clk 0:00:33.5]}
22... Qxe6 {[%clk 0:00:26.2]} 23. Bxf6 {[%clk 0:00:31.9]} 23... Bxf6 {[%clk
0:00:24.2]} 24. Bxd5 {[%clk 0:00:31.6]} 24... Qc8 {[%clk 0:00:19.1]} 25. Qxc8
{[%clk 0:00:28.4]} 25... Raxc8 {[%clk 0:00:20]} 26. Bxg8 {[%clk 0:00:28.4]}
26... Kxg8 {[%clk 0:00:20.9]} 27. Rd7 {[%clk 0:00:28.4]} 27... a5 {[%clk
0:00:19.8]} 28. Rfd1 {[%clk 0:00:27.3]} 28... Bd4 {[%clk 0:00:19.6]} 29. Re1
{[%clk 0:00:26.9]} 29... Rf8 {[%clk 0:00:19.3]} 30. Re2 {[%clk 0:00:26.4]} 30...
h6 {[%clk 0:00:19]} 31. Kg2 {[%clk 0:00:25.9]} 31... Rf6 {[%clk 0:00:17.4]} 32.
f4 {[%clk 0:00:22.3]} 32... Bc3 {[%clk 0:00:13.9]} 33. Re8+ {[%clk 0:00:21.1]}
33... Kh7 {[%clk 0:00:13.9]} 34. Ree7 {[%clk 0:00:20.9]} 34... Rg6 {[%clk
0:00:13.1]} 35. Kf3 {[%clk 0:00:19.8]} 35... h5 {[%clk 0:00:12.9]} 36. h3 {[%clk
0:00:18]} 36... Bf6 {[%clk 0:00:12.8]} 37. Rf7 {[%clk 0:00:16.9]} 37... Bd4
{[%clk 0:00:12.6]} 38. g4 {[%clk 0:00:14.8]} 38... hxg4+ {[%clk 0:00:12.6]} 39.
hxg4 {[%clk 0:00:15.2]} 39... Re6 {[%clk 0:00:13.3]} 40. g5 {[%clk 0:00:13.3]}
40... Re3+ {[%clk 0:00:13.2]} 41. Kg4 {[%clk 0:00:13.8]} 41... Re2 {[%clk
0:00:12.8]} 42. Kf5 {[%clk 0:00:12.2]} 42... Rxa2 {[%clk 0:00:08.5]} 43. Rd8
{[%clk 0:00:08.3]} 43... Rf2 {[%clk 0:00:04.1]} 44. g6+ {[%clk 0:00:08.3]} 44...
Kh6 {[%clk 0:00:04.3]} 45. Rh8# {[%clk 0:00:08.6]} 1-0

[Event "Early-Titled-Tuesday-Blitz-June-18-2024"]
[Site "Chess.com"]
[Date "2024.06.18"]
[Round "3"]
[White "Philosopherrr"]
[Black "Caroexpert"]
[Result "0-1"]
[WhiteElo "2457"]
[BlackElo "2655"]
[TimeControl "180+1"]
[EndTime "8:30:19 PDT"]
[Termination "Caroexpert won by resignation"]

1. e4 {[%clk 0:03:00.9]} 1... c6 {[%clk 0:02:45.1]} 2. Nf3 {[%clk 0:02:58.3]}
2... d5 {[%clk 0:02:46]} 3. d3 {[%clk 0:02:58.2]} 3... Bg4 {[%clk 0:02:44.3]} 4.
Nbd2 {[%clk 0:02:57.4]} 4... e6 {[%clk 0:02:43.8]} 5. Be2 {[%clk 0:02:56.4]}
5... Bd6 {[%clk 0:02:43]} 6. c3 {[%clk 0:02:54.5]} 6... Nd7 {[%clk 0:02:42.7]}
7. d4 {[%clk 0:02:53.7]} 7... dxe4 {[%clk 0:02:32.5]} 8. Nxe4 {[%clk 0:02:53.6]}
8... Ndf6 {[%clk 0:02:33.2]} 9. Nxd6+ {[%clk 0:02:53.1]} 9... Qxd6 {[%clk
0:02:33]} 10. h3 {[%clk 0:02:53.6]} 10... Bxf3 {[%clk 0:02:31.4]} 11. Bxf3
{[%clk 0:02:53.4]} 11... Ne7 {[%clk 0:02:32.3]} 12. O-O {[%clk 0:02:53.4]} 12...
O-O {[%clk 0:02:32.4]} 13. Qb3 {[%clk 0:02:53.3]} 13... Rab8 {[%clk 0:02:29.6]}
14. Re1 {[%clk 0:02:50.4]} 14... b5 {[%clk 0:02:21.5]} 15. g3 {[%clk 0:02:47.2]}
15... Ned5 {[%clk 0:02:21.2]} 16. Bd2 {[%clk 0:02:41.1]} 16... a5 {[%clk
0:02:15.3]} 17. Qc2 {[%clk 0:02:40.3]} 17... c5 {[%clk 0:02:12]} 18. dxc5 {[%clk
0:02:33]} 18... Qxc5 {[%clk 0:02:12.9]} 19. h4 {[%clk 0:02:31]} 19... Rfc8
{[%clk 0:02:03.7]} 20. Rad1 {[%clk 0:02:29.8]} 20... b4 {[%clk 0:02:02.6]} 21.
Re5 {[%clk 0:02:16.5]} 21... Qc7 {[%clk 0:01:45.6]} 22. Rxd5 {[%clk 0:02:05.4]}
22... exd5 {[%clk 0:01:24.1]} 23. Bf4 {[%clk 0:02:04.7]} 23... Qc5 {[%clk
0:01:24.6]} 24. Bxb8 {[%clk 0:02:02.3]} 24... Rxb8 {[%clk 0:01:25.5]} 25. Qb3
{[%clk 0:01:46.5]} 25... Ne4 {[%clk 0:00:50]} 26. Rd4 {[%clk 0:01:21.2]} 26...
a4 {[%clk 0:00:27.8]} 27. Qxd5 {[%clk 0:01:00.6]} 27... Qxd5 {[%clk 0:00:18.6]}
28. Rxd5 {[%clk 0:01:00.8]} 28... bxc3 {[%clk 0:00:16.6]} 29. Bxe4 {[%clk
0:00:59.4]} 29... cxb2 {[%clk 0:00:16.6]} 30. Kg2 {[%clk 0:00:47.6]} 30... g6
{[%clk 0:00:14.8]} 31. Bb1 {[%clk 0:00:46.8]} 31... Rc8 {[%clk 0:00:09.7]} 32.
Rb5 {[%clk 0:00:25.4]} 32... a3 {[%clk 0:00:09.2]} 33. Rb3 {[%clk 0:00:24.2]}
33... Rc1 {[%clk 0:00:08.9]} 34. Rxa3 {[%clk 0:00:23.8]} 34... Rxb1 {[%clk
0:00:08.6]} 35. Rb3 {[%clk 0:00:24.3]} 35... Kf8 {[%clk 0:00:06]} 36. g4 {[%clk
0:00:22.7]} 36... Ke7 {[%clk 0:00:05.9]} 37. g5 {[%clk 0:00:23]} 37... Kd6
{[%clk 0:00:05.9]} 38. Kf3 {[%clk 0:00:20.3]} 38... Kc5 {[%clk 0:00:06.1]} 39.
a4 {[%clk 0:00:19.5]} 39... Kc4 {[%clk 0:00:05.1]} 40. Rb7 {[%clk 0:00:19]}
40... Kc3 {[%clk 0:00:05.2]} 41. Rc7+ {[%clk 0:00:17]} 41... Kb3 {[%clk
0:00:05.6]} 42. Rb7+ {[%clk 0:00:17.1]} 42... Ka2 {[%clk 0:00:06.1]} 43. a5
{[%clk 0:00:16.7]} 43... Rc1 {[%clk 0:00:02.9]} 44. a6 {[%clk 0:00:16.9]} 44...
b1=Q {[%clk 0:00:03.1]} 45. Rxb1 {[%clk 0:00:14.8]} 45... Kxb1 {[%clk
0:00:03.3]} 46. a7 {[%clk 0:00:15.7]} 46... Rc8 {[%clk 0:00:03.4]} 47. h5 {[%clk
0:00:16.6]} 47... Ra8 {[%clk 0:00:03.5]} 48. hxg6 {[%clk 0:00:17.5]} 48... hxg6
{[%clk 0:00:03.5]} 49. Ke4 {[%clk 0:00:18.4]} 49... Rxa7 {[%clk 0:00:03.9]} 50.
Ke5 {[%clk 0:00:19.3]} 50... Ra5+ {[%clk 0:00:04.4]} 51. Kf6 {[%clk 0:00:19.6]}
51... Rf5+ {[%clk 0:00:05.3]} 52. Kg7 {[%clk 0:00:20.2]} 52... Rxf2 {[%clk
0:00:05.5]} 0-1

[Event "Early-Titled-Tuesday-Blitz-June-18-2024"]
[Site "Chess.com"]
[Date "2024.06.18"]
[Round "3"]
[White "nitpicker"]
[Black "Nf3c5"]
[Result "0-1"]
[WhiteElo "2321"]
[BlackElo "2606"]
[TimeControl "180+1"]
[EndTime "8:30:20 PDT"]
[Termination "Nf3c5 won on time"]

1. d4 {[%clk 0:03:00.9]} 1... Nf6 {[%clk 0:02:56]} 2. c4 {[%clk 0:03:00.7]} 2...
g6 {[%clk 0:02:54.9]} 3. Nc3 {[%clk 0:02:59.4]} 3... Bg7 {[%clk 0:02:55.6]} 4.
e4 {[%clk 0:02:58.7]} 4... d6 {[%clk 0:02:56.2]} 5. Be2 {[%clk 0:02:59]} 5...
O-O {[%clk 0:02:56]} 6. Nf3 {[%clk 0:02:59]} 6... Na6 {[%clk 0:02:56.5]} 7. Be3
{[%clk 0:02:56.9]} 7... e5 {[%clk 0:02:54.3]} 8. d5 {[%clk 0:02:56.8]} 8... Ng4
{[%clk 0:02:54.8]} 9. Bg5 {[%clk 0:02:56.2]} 9... f6 {[%clk 0:02:55.5]} 10. Bh4
{[%clk 0:02:54.5]} 10... Nh6 {[%clk 0:02:55.2]} 11. Nd2 {[%clk 0:02:45.6]} 11...
g5 {[%clk 0:02:54.1]} 12. Bg3 {[%clk 0:02:44.8]} 12... f5 {[%clk 0:02:55]} 13.
exf5 {[%clk 0:02:41.9]} 13... Nxf5 {[%clk 0:02:51.3]} 14. Nde4 {[%clk 0:02:31]}
14... h6 {[%clk 0:02:28.4]} 15. O-O {[%clk 0:02:29.9]} 15... Nd4 {[%clk
0:02:19.9]} 16. Bg4 {[%clk 0:02:28.6]} 16... Bf5 {[%clk 0:02:12.1]} 17. Bxf5
{[%clk 0:02:20.4]} 17... Nxf5 {[%clk 0:02:10.7]} 18. a3 {[%clk 0:02:06.9]} 18...
Qe8 {[%clk 0:02:04.2]} 19. b4 {[%clk 0:02:01.5]} 19... Qg6 {[%clk 0:02:03.6]}
20. Rc1 {[%clk 0:01:25.9]} 20... h5 {[%clk 0:01:56.2]} 21. h3 {[%clk 0:01:26.2]}
21... Bh6 {[%clk 0:01:52]} 22. Rc2 {[%clk 0:01:14.7]} 22... Nd4 {[%clk 0:01:49]}
23. Rb2 {[%clk 0:01:14.7]} 23... g4 {[%clk 0:01:44.9]} 24. h4 {[%clk 0:01:03.7]}
24... Rf7 {[%clk 0:01:35.8]} 25. c5 {[%clk 0:01:02.7]} 25... Raf8 {[%clk
0:01:31.3]} 26. Re1 {[%clk 0:01:00.6]} 26... Nb8 {[%clk 0:01:22.7]} 27. a4
{[%clk 0:00:56.5]} 27... Nd7 {[%clk 0:01:20.9]} 28. Nb5 {[%clk 0:00:52]} 28...
Nxb5 {[%clk 0:01:16.4]} 29. axb5 {[%clk 0:00:51.6]} 29... Nf6 {[%clk 0:01:17.3]}
30. Qd3 {[%clk 0:00:38.4]} 30... Nxe4 {[%clk 0:01:10.1]} 31. Qxe4 {[%clk
0:00:36.4]} 31... Qxe4 {[%clk 0:01:06.4]} 32. Rxe4 {[%clk 0:00:36.1]} 32... Bf4
{[%clk 0:01:07.1]} 33. Bxf4 {[%clk 0:00:29]} 33... Rxf4 {[%clk 0:01:06.7]} 34.
Rxf4 {[%clk 0:00:27.9]} 34... Rxf4 {[%clk 0:01:07.6]} 35. cxd6 {[%clk
0:00:23.3]} 35... cxd6 {[%clk 0:01:07.7]} 36. Rc2 {[%clk 0:00:21.6]} 36... Rxb4
{[%clk 0:00:50.1]} 37. Rc8+ {[%clk 0:00:21.1]} 37... Kf7 {[%clk 0:00:49.8]} 38.
Rc7+ {[%clk 0:00:22]} 38... Kf6 {[%clk 0:00:50.3]} 39. Rxb7 {[%clk 0:00:22.6]}
39... e4 {[%clk 0:00:50.9]} 40. Rxa7 {[%clk 0:00:16.9]} 40... Rxb5 {[%clk
0:00:49.4]} 41. Rh7 {[%clk 0:00:13.8]} 41... Rxd5 {[%clk 0:00:49.2]} 42. Kf1
{[%clk 0:00:13.8]} 42... Kg6 {[%clk 0:00:46.5]} 43. Re7 {[%clk 0:00:12.8]} 43...
Rd4 {[%clk 0:00:45.1]} 44. Ke2 {[%clk 0:00:10.7]} 44... d5 {[%clk 0:00:43.2]}
45. Ke3 {[%clk 0:00:10]} 45... Rd3+ {[%clk 0:00:38.1]} 46. Kf4 {[%clk
0:00:10.3]} 46... Kf6 {[%clk 0:00:39]} 47. Rh7 {[%clk 0:00:09]} 47... Rd2 {[%clk
0:00:39.6]} 48. Rh6+ {[%clk 0:00:08.4]} 48... Kg7 {[%clk 0:00:38.9]} 49. Rd6
{[%clk 0:00:07.6]} 49... Rxf2+ {[%clk 0:00:39.1]} 50. Kg3 {[%clk 0:00:07.4]}
50... Rd2 {[%clk 0:00:38.8]} 51. Kf4 {[%clk 0:00:07.6]} 51... Kf7 {[%clk
0:00:34.8]} 52. Rh6 {[%clk 0:00:06.4]} 52... Rxg2 {[%clk 0:00:33.2]} 53. Rxh5
{[%clk 0:00:06.6]} 53... Rd2 {[%clk 0:00:30.5]} 54. Rf5+ {[%clk 0:00:05.3]}
54... Ke6 {[%clk 0:00:30.1]} 55. Re5+ {[%clk 0:00:05]} 55... Kd6 {[%clk
0:00:29.5]} 56. Rg5 {[%clk 0:00:05.1]} 56... Rf2+ {[%clk 0:00:27.2]} 57. Ke3
{[%clk 0:00:04.8]} 57... Rf3+ {[%clk 0:00:27.2]} 58. Ke2 {[%clk 0:00:05.5]}
58... g3 {[%clk 0:00:27.5]} 59. h5 {[%clk 0:00:06]} 59... d4 {[%clk 0:00:26.5]}
60. h6 {[%clk 0:00:05]} 60... Rf2+ {[%clk 0:00:26.9]} 61. Ke1 {[%clk 0:00:05]}
61... Rh2 {[%clk 0:00:27.6]} 62. Rxg3 {[%clk 0:00:04.6]} 62... Rxh6 {[%clk
0:00:27]} 0-1

[Event "Early-Titled-Tuesday-Blitz-June-18-2024"]
[Site "Chess.com"]
[Date "2024.06.18"]
[Round "3"]
[White "David_ATM"]
[Black "Seppppppy"]
[Result "1-0"]
[WhiteElo "2422"]
[BlackElo "2189"]
[TimeControl "180+1"]
[EndTime "8:30:20 PDT"]
[Termination "David_ATM won on time"]

1. e4 {[%clk 0:03:00.9]} 1... e5 {[%clk 0:02:59.8]} 2. Nf3 {[%clk 0:03:00.7]}
2... Nc6 {[%clk 0:02:57.8]} 3. Bb5 {[%clk 0:03:01.2]} 3... a6 {[%clk 0:02:56.8]}
4. Ba4 {[%clk 0:03:01.5]} 4... Bc5 {[%clk 0:02:56.4]} 5. O-O {[%clk 0:03:00.6]}
5... Nge7 {[%clk 0:02:44.4]} 6. c3 {[%clk 0:03:00.6]} 6... Ng6 {[%clk
0:02:34.2]} 7. d4 {[%clk 0:02:56.9]} 7... Ba7 {[%clk 0:02:33.7]} 8. Bxc6 {[%clk
0:02:52.2]} 8... dxc6 {[%clk 0:02:33.8]} 9. Nxe5 {[%clk 0:02:22]} 9... Nxe5
{[%clk 0:02:33.2]} 10. dxe5 {[%clk 0:02:22.9]} 10... Qe7 {[%clk 0:02:33.4]} 11.
Bf4 {[%clk 0:02:21]} 11... g5 {[%clk 0:02:33.5]} 12. Be3 {[%clk 0:02:06.2]}
12... Bxe3 {[%clk 0:02:31.2]} 13. fxe3 {[%clk 0:02:07.1]} 13... Qxe5 {[%clk
0:02:31.7]} 14. Qd4 {[%clk 0:02:02.4]} 14... Qxd4 {[%clk 0:02:23.1]} 15. exd4
{[%clk 0:02:03.3]} 15... Be6 {[%clk 0:02:20]} 16. Nd2 {[%clk 0:02:01.6]} 16...
O-O-O {[%clk 0:02:19.4]} 17. Nf3 {[%clk 0:01:59.5]} 17... h6 {[%clk 0:02:18.9]}
18. Ne5 {[%clk 0:01:58]} 18... Rhf8 {[%clk 0:02:15.9]} 19. Rf6 {[%clk 0:01:54]}
19... h5 {[%clk 0:02:07.8]} 20. a3 {[%clk 0:01:45.4]} 20... Rde8 {[%clk
0:01:45.6]} 21. Raf1 {[%clk 0:01:42.2]} 21... c5 {[%clk 0:01:44.9]} 22. dxc5
{[%clk 0:01:03]} 22... Bb3 {[%clk 0:01:33.4]} 23. Nxf7 {[%clk 0:00:57.8]} 23...
Bxf7 {[%clk 0:01:30.2]} 24. Rxf7 {[%clk 0:00:58.7]} 24... Rxf7 {[%clk
0:01:30.9]} 25. Rxf7 {[%clk 0:00:59.6]} 25... Rxe4 {[%clk 0:01:31.6]} 26. Rf5
{[%clk 0:00:52.7]} 26... Re2 {[%clk 0:01:23.7]} 27. c6 {[%clk 0:00:44]} 27...
bxc6 {[%clk 0:01:21.4]} 28. Rxg5 {[%clk 0:00:42.6]} 28... Rxb2 {[%clk
0:01:21.2]} 29. Rxh5 {[%clk 0:00:43.2]} 29... Kb7 {[%clk 0:01:14]} 30. a4 {[%clk
0:00:30.3]} 30... Rc2 {[%clk 0:00:54.6]} 31. Rc5 {[%clk 0:00:30]} 31... Kb6
{[%clk 0:00:54.4]} 32. Rc4 {[%clk 0:00:30.6]} 32... c5 {[%clk 0:00:50.8]} 33. h4
{[%clk 0:00:30.8]} 33... Kc6 {[%clk 0:00:45.1]} 34. h5 {[%clk 0:00:31.4]} 34...
Kd5 {[%clk 0:00:45.6]} 35. h6 {[%clk 0:00:16.7]} 35... Re2 {[%clk 0:00:45.2]}
36. h7 {[%clk 0:00:13.5]} 36... Re8 {[%clk 0:00:44.6]} 37. Rh4 {[%clk
0:00:13.8]} 37... Rh8 {[%clk 0:00:44.6]} 38. g4 {[%clk 0:00:12.6]} 38... Ke4
{[%clk 0:00:44.4]} 39. Kg2 {[%clk 0:00:07.9]} 39... Kf4 {[%clk 0:00:41.4]} 40.
Kh3 {[%clk 0:00:08.4]} 40... Kg5 {[%clk 0:00:41.6]} 41. Rh5+ {[%clk 0:00:08.6]}
41... Kg6 {[%clk 0:00:41.5]} 42. Kh4 {[%clk 0:00:08.7]} 42... c6 {[%clk
0:00:36.1]} 43. g5 {[%clk 0:00:08.7]} 43... Kf5 {[%clk 0:00:07.3]} 44. Rh6
{[%clk 0:00:08.1]} 44... c4 {[%clk 0:00:06.3]} 45. Kh5 {[%clk 0:00:07.6]} 45...
c5 {[%clk 0:00:04.9]} 46. g6 {[%clk 0:00:07.7]} 46... Kf6 {[%clk 0:00:03.2]} 47.
Kg4 {[%clk 0:00:07]} 47... Kg7 {[%clk 0:00:03.7]} 48. Kg5 {[%clk 0:00:07.3]}
48... a5 {[%clk 0:00:03.4]} 49. Rh4 {[%clk 0:00:07.4]} 49... Re8 {[%clk
0:00:03.2]} 50. h8=Q+ {[%clk 0:00:07.5]} 50... Rxh8 {[%clk 0:00:03.6]} 51. Rxh8
{[%clk 0:00:08.2]} 51... Kxh8 {[%clk 0:00:04.5]} 52. Kf6 {[%clk 0:00:08]} 52...
Kg8 {[%clk 0:00:05.4]} 53. g7 {[%clk 0:00:08.6]} 1-0